bitfinex/quotes_SOLUSD_20250612
["timestamp","ask_amount","ask_price","bid_price","bid_amount"]
[1749707264002,41.89176331,159.35,159.34,5.54]
[1749707264397,41.89173444,159.35,159.34,5.54]
[1749707265028,39.54895555,159.35,159.34,5.54]
[1749707265229,41.89172171,159.35,159.34,5.54]
[1749707265420,41.89173444,159.35,159.34,5.54]
[1749707265622,39.54895555,159.35,159.34,5.54]
[1749707266025,41.89171453,159.35,159.34,5.54]
[1749707266216,41.89170181,159.35,159.34,5.54]
[1749707266420,39.54895555,159.35,159.34,5.54]
[1749707266615,33.01447632,159.35,159.34,5.54]
[1749707266817,41.89172171,159.35,159.34,5.54]
[1749707267015,39.54895555,159.35,159.34,5.54]
[1749707267723,41.89172936,159.35,159.34,5.54]
[1749707268102,41.89170946,159.35,159.34,5.54]
[1749707268536,41.89170181,159.35,159.34,5.54]
[1749707268833,41.89170946,159.35,159.34,5.54]
[1749707269611,33.01449738,159.35,159.34,5.54]
[1749707269811,41.89173512,159.35,159.34,5.54]
[1749707270013,39.54895555,159.35,159.34,5.54]
[1749707270213,30.67171016,159.35,159.34,5.54]
[1749707270416,41.89173512,159.35,159.34,5.54]
[1749707270610,39.54895555,159.35,159.34,5.54]
[1749707270920,41.89174277,159.35,159.34,5.54]
[1749707271230,41.89172936,159.35,159.34,5.54]
[1749707271606,41.89172171,159.35,159.34,5.54]
[1749707272228,41.89171501,159.35,159.34,5.54]
[1749707272430,39.54895555,159.35,159.34,5.54]
[1749707272610,41.89171501,159.35,159.34,5.54]
[1749707272809,39.54895555,159.35,159.34,5.54]
[1749707273017,41.89172507,159.35,159.34,5.54]
[1749707273713,41.89173512,159.35,159.34,5.54]
[1749707274130,41.89171522,159.35,159.34,5.54]
[1749707274330,30.67171016,159.35,159.34,5.54]
[1749707274525,41.89171522,159.35,159.34,5.54]
[1749707275229,41.89173512,159.35,159.34,5.54]
[1749707275427,33.01448973,159.35,159.34,5.54]
[1749707275739,41.89173512,159.35,159.34,5.54]
[1749707275924,39.54895555,159.35,159.34,5.54]
[1749707276536,41.89173314,159.35,159.34,5.54]
[1749707277112,41.89172171,159.35,159.34,5.54]
[1749707277312,41.8917083,159.35,159.34,5.54]
[1749707277940,41.89169626,159.35,159.34,5.54]
[1749707278328,41.89167783,159.35,159.34,5.54]
[1749707278621,37.21921948,159.35,159.34,5.54]
[1749707278938,34.87724539,159.35,159.34,5.54]
[1749707279116,37.21877249,159.35,159.34,5.54]
[1749707279430,34.87724539,159.35,159.34,5.54]
[1749707279808,37.2186228,159.35,159.34,5.54]
[1749707280012,34.87724539,159.35,159.34,5.54]
[1749707280213,37.2186228,159.35,159.34,5.54]
[1749707280414,34.87724539,159.35,159.34,5.54]
[1749707280748,37.2186228,159.35,159.34,5.54]
[1749707281447,37.21863319,159.35,159.34,5.54]
[1749707281817,11.21886509,159.35,159.34,5.54]
[1749707282143,26.0,159.35,159.34,5.54]
[1749707282520,8.87724539,159.38,159.34,5.54]
[1749707282723,26.0,159.36,159.35,25.68]
[1749707284334,26.0,159.38,159.35,25.68]
[1749707286138,34.87724539,159.38,159.35,25.68]
[1749707287534,4.67497747,159.37,159.35,25.68]
[1749707287731,34.87724539,159.38,159.35,25.68]
[1749707290125,8.87724539,159.37,159.35,25.68]
[1749707293426,26.0,159.38,159.35,25.68]
[1749707293757,34.87724539,159.38,159.35,25.68]
[1749707294228,8.87724539,159.36,159.34,5.54]
[1749707294433,8.87724539,159.36,159.35,25.68]
[1749707295223,13.54745662,159.37,159.35,25.68]
[1749707295419,8.87724539,159.37,159.35,25.68]
[1749707296043,34.87724539,159.38,159.35,25.68]
[1749707297746,26.0,159.38,159.35,25.68]
[1749707297946,8.87724539,159.39,159.35,34.55724539]
[1749707298144,39.54793516,159.4,159.35,34.55724539]
[1749707298329,34.87724539,159.4,159.35,34.55724539]
[1749707298524,26.0,159.4,159.35,34.55724539]
[1749707298731,8.87724539,159.39,159.35,34.55724539]
[1749707301732,8.87724539,159.39,159.35,25.68]
[1749707301936,8.87724539,159.37,159.34,5.54]
[1749707302132,8.87724539,159.36,159.35,25.66]
[1749707302333,8.87724539,159.36,159.34,5.54]
[1749707302532,8.87724539,159.36,159.35,25.66]
[1749707307862,8.87724539,159.36,159.34,5.54]
[1749707308058,8.87724539,159.35,159.34,31.2]
[1749707311034,8.87724539,159.35,159.34,5.54]
[1749707311242,8.87724539,159.35,159.34,31.2]
[1749707312140,8.87724539,159.35,159.25,7.8336]
[1749707312339,8.87724539,159.31,159.26,49.82964886]
[1749707312650,8.87724539,159.31,159.27,25.66]
[1749707313171,8.87724539,159.31,159.28,25.66]
[1749707313855,2.34148028,159.35,159.28,25.66]
[1749707314046,8.87724539,159.31,159.28,25.66]
[1749707314469,8.87724539,159.31,159.29,25.66]
[1749707314671,8.87724539,159.32,159.29,25.66]
[1749707314873,39.55010075,159.34,159.3,8.87724539]
[1749707315045,34.87724539,159.34,159.31,25.66]
[1749707316175,1.5145,159.37,159.33,8.87724539]
[1749707316176,34.87724539,159.37,159.33,8.87724539]
[1749707316347,8.87724539,159.37,159.34,25.66]
[1749707316672,26.0,159.36,159.35,5.52]
[1749707317240,13.84916814,159.39,159.35,5.52]
[1749707317574,20.8655543,159.38,159.36,25.66]
[1749707317766,4.67423538,159.37,159.36,25.66]
[1749707318359,13.84916814,159.38,159.36,25.66]
[1749707318678,13.84916814,159.37,159.36,25.66]
[1749707321269,13.84916814,159.38,159.36,25.66]
[1749707328279,13.84916814,159.39,159.36,25.66]
[1749707330685,13.84916814,159.38,159.36,25.66]
[1749707332188,13.84916814,159.39,159.36,25.66]
[1749707332595,39.84916814,159.39,159.36,25.66]
[1749707334606,26.0,159.39,159.36,25.66]
[1749707334767,39.84916814,159.39,159.36,25.66]
[1749707338104,39.84916814,159.39,159.37,5.52]
[1749707339308,34.86279817,159.39,159.37,5.52]
[1749707340613,26.0,159.39,159.37,5.52]
[1749707340780,34.86279817,159.39,159.37,5.52]
[1749707342399,26.0,159.39,159.37,5.52]
[1749707342897,34.86279817,159.4,159.37,5.52]
[1749707344482,26.0,159.4,159.37,14.38279817]
[1749707345294,26.0,159.4,159.38,8.86279817]
[1749707345507,26.0,159.4,159.39,25.64]
[1749707346784,34.86279817,159.42,159.39,25.64]
[1749707348995,8.86279817,159.41,159.39,25.64]
[1749707349205,8.86279817,159.4,159.39,25.64]
[1749707349512,8.86279817,159.4,159.37,5.52]
[1749707349713,26.0,159.42,159.38,25.64]
[1749707350797,8.86279817,159.39,159.38,25.64]
[1749707351306,8.86279817,159.39,159.37,5.52]
[1749707351513,8.86279817,159.38,159.37,31.16]
[1749707351992,8.86279817,159.39,159.37,31.16]
[1749707352921,8.86279817,159.39,159.38,25.64]
[1749707354218,8.86279817,159.39,159.37,5.52]
[1749707354405,8.86279817,159.39,159.38,25.64]
[1749707354714,34.86279817,159.39,159.38,25.64]
[1749707357617,8.86279817,159.39,159.38,25.64]
[1749707358120,8.86279817,159.39,159.37,5.52]
[1749707358414,8.86279817,159.39,159.38,25.64]
[1749707359719,26.0,159.41,159.38,25.64]
[1749707360018,8.86279817,159.39,159.38,25.64]
[1749707360199,34.86279817,159.41,159.38,25.64]
[1749707362201,8.86279817,159.4,159.39,5.52]
[1749707365699,13.54877532,159.4,159.39,5.52]
[1749707366111,4.68597715,159.4,159.39,5.52]
[1749707366316,13.54877532,159.4,159.39,5.52]
[1749707374124,8.86279817,159.4,159.39,5.52]
[1749707375228,13.55502364,159.4,159.39,5.52]
[1749707376533,34.86279817,159.41,159.39,5.52]
[1749707376711,34.86279817,159.41,159.4,25.64]
[1749707376909,39.55550052,159.41,159.4,25.64]
[1749707379838,30.69270235,159.41,159.4,25.64]
[1749707380130,34.86279817,159.41,159.4,25.64]
[1749707380332,39.55602346,159.41,159.4,25.64]
[1749707380925,26.0,159.41,159.4,25.64]
[1749707381237,30.69357157,159.41,159.4,25.64]
[1749707383433,8.86279817,159.42,159.4,25.64]
[1749707384050,8.86279817,159.43,159.4,25.64]
[1749707384545,8.86279817,159.42,159.4,25.64]
[1749707384740,8.86279817,159.41,159.4,25.64]
[1749707390730,149.1,159.44,159.4,25.64]
[1749707391041,8.86279817,159.42,159.4,25.64]
[1749707394542,26.0,159.41,159.4,25.64]
[1749707396520,8.86279817,159.42,159.4,25.64]
[1749707398721,1.5936,159.45,159.4,25.64]
[1749707398722,26.0,159.41,159.4,25.64]
[1749707399139,7.43608279,159.47,159.4,25.64]
[1749707399350,34.86279817,159.43,159.4,25.64]
[1749707406862,26.0,159.4,159.32,88.8455]
[1749707407038,8.86279817,159.35,159.3,8.86279817]
[1749707407238,8.86279817,159.34,159.31,5.5]
[1749707407469,8.86279817,159.35,159.32,25.62]
[1749707408660,26.0,159.41,159.32,34.48279817]
[1749707408963,8.86279817,159.37,159.32,34.48279817]
[1749707410453,8.86279817,159.37,159.33,8.86279817]
[1749707410767,26.0,159.4,159.33,8.86279817]
[1749707411064,8.86279817,159.4,159.36,8.86279817]
[1749707411243,1.5214,159.42,159.37,25.62]
[1749707411443,13.84424519,159.43,159.39,13.84424519]
[1749707411646,13.84424519,159.43,159.4,5.5]
[1749707411847,13.84424519,159.43,159.41,25.62]
[1749707412288,1.6589,159.46,159.41,25.62]
[1749707412576,13.84424519,159.43,159.41,25.62]
[1749707414069,13.84424519,159.42,159.41,25.62]
[1749707414774,13.84424519,159.43,159.41,25.62]
[1749707414972,26.0,159.45,159.41,25.62]
[1749707415303,13.84424519,159.43,159.41,25.62]
[1749707418370,13.84424519,159.42,159.41,25.62]
[1749707419591,18.53254328,159.42,159.4,5.5]
[1749707419752,13.84424519,159.41,159.4,5.5]
[1749707422477,26.0,159.43,159.4,5.5]
[1749707422680,13.84424519,159.41,159.4,5.5]
[1749707425983,13.84424519,159.41,159.4,31.12]
[1749707426977,26.0,159.43,159.4,31.12]
[1749707427186,13.84424519,159.41,159.4,31.12]
[1749707428895,13.84424519,159.41,159.4,5.5]
[1749707434107,13.84424519,159.41,159.33,13.84424519]
[1749707434394,13.84424519,159.38,159.34,44.96424519]
[1749707434574,13.84424519,159.38,159.35,25.62]
[1749707437287,8.86289703,159.38,159.35,25.62]
[1749707437682,8.86289703,159.39,159.35,25.62]
[1749707438392,8.86289703,159.39,159.35,34.48289703]
[1749707438595,8.86289703,159.4,159.35,34.48289703]
[1749707439100,8.86289703,159.39,159.35,34.48289703]
[1749707440887,8.86289703,159.39,159.35,25.62]
[1749707441093,8.86289703,159.39,159.35,34.48289703]
[1749707444085,8.86289703,159.4,159.36,8.86289703]
[1749707444285,8.86289703,159.4,159.37,25.62]
[1749707446090,8.86289703,159.4,159.36,5.86289703]
[1749707447282,8.86289703,159.4,159.37,25.6]
[1749707448615,26.0,159.42,159.37,25.6]
[1749707448814,8.86289703,159.4,159.37,25.6]
[1749707450114,8.86289703,159.39,159.37,25.6]
[1749707451005,8.86289703,159.39,159.38,5.5]
[1749707454610,13.54972781,159.39,159.38,5.5]
[1749707457728,26.0,159.38,159.28,18.64964886]
[1749707457939,26.0,159.34,159.29,5.5]
[1749707458105,8.86289703,159.32,159.29,5.5]
[1749707458308,8.86289703,159.32,159.3,25.6]
[1749707458537,8.86289703,159.32,159.29,5.5]
[1749707458734,8.86289703,159.32,159.3,25.6]
[1749707460241,26.0,159.34,159.29,5.5]
[1749707460242,8.86289703,159.31,159.29,5.5]
[1749707460529,26.0,159.34,159.29,5.5]
[1749707460530,8.86289703,159.3,159.29,5.5]
[1749707460711,8.86289703,159.3,159.29,31.1]
[1749707461126,8.86289703,159.3,159.29,5.5]
[1749707461333,8.86289703,159.3,159.29,31.1]
[1749707462045,8.86289703,159.3,159.29,5.5]
[1749707462234,8.86289703,159.3,159.29,31.1]
[1749707463241,13.86566327,159.3,159.29,31.1]
[1749707463423,26.0,159.33,159.29,31.1]
[1749707463731,13.86566327,159.3,159.29,31.1]
[1749707464126,13.86566327,159.3,159.29,5.5]
[1749707464321,13.86566327,159.3,159.29,31.12]
[1749707464829,13.86566327,159.3,159.29,5.5]
[1749707465019,13.86566327,159.3,159.29,31.12]
[1749707468138,13.86566327,159.3,159.29,5.5]
[1749707476255,39.86566327,159.3,159.29,5.5]
[1749707476432,13.86566327,159.3,159.29,5.5]
[1749707476633,39.86566327,159.3,159.29,5.5]
[1749707476943,40.36566327,159.3,159.29,5.5]
[1749707477254,28.23132654,159.3,159.29,5.5]
[1749707477940,27.73132654,159.3,159.29,5.5]
[1749707478141,28.01564968,159.3,159.29,5.5]
[1749707479040,51.68726966,159.3,159.29,5.5]
[1749707479246,26.0,159.27,159.25,5.5]
[1749707479554,13.86566327,159.26,159.25,5.5]
[1749707483063,13.86566327,159.28,159.25,5.5]
[1749707483235,13.86566327,159.29,159.26,25.62]
[1749707484064,13.86566327,159.28,159.26,25.62]
[1749707484256,26.0,159.3,159.26,25.62]
[1749707484567,13.86566327,159.29,159.26,25.62]
[1749707486064,13.86566327,159.28,159.26,25.62]
[1749707490768,13.86566327,159.27,159.26,25.62]
[1749707494442,13.86566327,159.28,159.26,25.62]
[1749707497254,8.87445074,159.28,159.26,25.62]
[1749707499256,8.87445074,159.29,159.26,25.62]
[1749707500058,8.87445074,159.28,159.26,25.62]
[1749707506673,8.87445074,159.28,159.27,5.48]
[1749707513189,26.0,159.3,159.27,5.48]
[1749707513370,4.69139421,159.29,159.28,25.6]
[1749707513569,13.56584495,159.29,159.28,25.6]
[1749707515790,4.69139421,159.29,159.28,25.6]
[1749707516081,8.87445074,159.33,159.28,34.47445074]
[1749707516263,4.69296576,159.32,159.3,8.87445074]
[1749707516468,7.03740467,159.35,159.31,34.47445074]
[1749707516676,1.6238,159.39,159.33,8.87445074]
[1749707516677,8.87445074,159.37,159.33,8.87445074]
[1749707516884,8.87445074,159.37,159.34,25.6]
[1749707516885,4.69224058,159.36,159.34,25.6]
[1749707517087,8.87445074,159.37,159.34,25.6]
[1749707517271,4.69203005,159.36,159.34,25.6]
[1749707517587,13.85107909,159.37,159.34,25.6]
[1749707518481,13.85107909,159.36,159.34,25.6]
[1749707521684,26.0,159.37,159.34,25.6]
[1749707521877,13.85107909,159.36,159.34,25.6]
[1749707522378,39.85107909,159.37,159.34,25.6]
[1749707523090,154.96504129,159.42,159.35,13.85107909]
[1749707523284,13.85107909,159.39,159.36,5.48]
[1749707523485,2.34307722,159.41,159.37,25.6]
[1749707523689,18.52959043,159.41,159.37,25.6]
[1749707523999,13.85107909,159.41,159.37,25.6]
[1749707524995,13.85107909,159.4,159.37,25.6]
[1749707525602,27.5503,159.43,159.37,25.6]
[1749707525786,13.85107909,159.4,159.37,25.6]
[1749707526482,27.5503,159.43,159.38,13.85107909]
[1749707526686,39.85107909,159.43,159.38,13.85107909]
[1749707526888,39.85107909,159.43,159.39,13.85107909]
[1749707527079,39.85107909,159.43,159.4,25.58]
[1749707527881,13.85107909,159.42,159.4,25.58]
[1749707528893,26.0,159.43,159.4,25.58]
[1749707529098,39.85107909,159.43,159.4,25.58]
[1749707529282,13.85107909,159.43,159.4,25.58]
[1749707529697,26.0,159.44,159.4,25.58]
[1749707529905,13.85107909,159.43,159.4,25.58]
[1749707532811,13.85107909,159.41,159.4,25.58]
[1749707533013,39.85107909,159.41,159.36,5.48]
[1749707533310,13.85107909,159.37,159.36,31.06]
[1749707533609,13.85107909,159.39,159.36,31.06]
[1749707533789,27.5586,159.41,159.36,31.06]
[1749707533986,26.0,159.43,159.38,13.85107909]
[1749707534198,13.85107909,159.42,159.39,25.58]
[1749707535816,26.0,159.44,159.39,25.58]
[1749707535817,13.85107909,159.41,159.39,25.58]
[1749707535993,13.85107909,159.4,159.39,25.58]
[1749707536996,26.0,159.44,159.39,25.58]
[1749707537318,13.85107909,159.4,159.39,25.58]
[1749707537495,13.85107909,159.4,159.36,5.48]
[1749707537697,13.85107909,159.37,159.36,5.48]
[1749707540021,13.85107909,159.37,159.36,31.06]
[1749707540995,13.85107909,159.38,159.36,31.06]
[1749707541798,13.85107909,159.38,159.36,5.48]
[1749707542009,13.85107909,159.38,159.36,31.06]
[1749707547527,18.64964886,159.44,159.36,44.91107909]
[1749707547723,13.85107909,159.4,159.36,31.06]
[1749707547913,13.85107909,159.4,159.36,44.91107909]
[1749707548318,13.85107909,159.41,159.37,13.85107909]
[1749707548525,39.85107909,159.42,159.38,25.58]
[1749707549329,13.85107909,159.41,159.38,25.58]
[1749707555035,26.0,159.42,159.38,25.58]
[1749707555335,13.85107909,159.41,159.38,25.58]
[1749707555713,13.85107909,159.4,159.38,25.58]
[1749707556533,13.85107909,159.41,159.38,25.58]
[1749707557728,26.0,159.42,159.38,25.58]
[1749707557954,13.85107909,159.43,159.38,39.43107909]
[1749707558731,13.85107909,159.42,159.38,39.43107909]
[1749707561142,13.85107909,159.41,159.38,25.58]
[1749707563840,26.0,159.43,159.38,25.58]
[1749707564043,13.85107909,159.41,159.38,25.58]
[1749707564429,26.0,159.43,159.38,39.43107909]
[1749707564745,154.92200328,159.47,159.41,13.85107909]
[1749707565044,13.85107909,159.45,159.42,25.56]
[1749707565338,13.85107909,159.43,159.42,25.56]
[1749707565542,18.53923445,159.43,159.4,25.56]
[1749707565732,13.85107909,159.41,159.4,25.56]
[1749707566819,13.85107909,159.41,159.4,31.04]
[1749707567226,44.53997734,159.41,159.39,5.48]
[1749707567433,13.85107909,159.4,159.39,5.48]
[1749707567847,18.54179983,159.4,159.39,5.48]
[1749707570453,20.89084528,159.4,159.39,5.48]
[1749707570632,18.54179983,159.4,159.39,5.48]
[1749707570831,7.03982134,159.4,159.39,5.48]
[1749707571036,20.89090043,159.4,159.39,5.48]
[1749707571227,18.54179983,159.4,159.39,5.48]
[1749707571433,20.890869,159.4,159.39,5.48]
[1749707571650,20.89089271,159.4,159.39,5.48]
[1749707572044,20.89090725,159.4,159.39,5.48]
[1749707572445,20.89088325,159.4,159.39,5.48]
[1749707572825,18.54179983,159.4,159.39,5.48]
[1749707573432,13.85107909,159.4,159.39,5.48]
[1749707573857,18.54169513,159.4,159.39,5.48]
[1749707577559,4.69061604,159.4,159.39,5.48]
[1749707578049,18.54169513,159.4,159.39,5.48]
[1749707579068,20.89075976,159.4,159.39,5.48]
[1749707580072,18.54169513,159.4,159.39,5.48]
[1749707582467,4.69061604,159.4,159.39,5.48]
[1749707582766,18.54169513,159.4,159.39,5.48]
[1749707586164,20.88763179,159.4,159.39,5.48]
[1749707586365,18.54169513,159.4,159.39,5.48]
[1749707586551,20.88763178,159.4,159.39,5.48]
[1749707587344,18.54169513,159.4,159.39,5.48]
[1749707587544,20.88763178,159.4,159.39,5.48]
[1749707587742,18.54169513,159.4,159.39,5.48]
[1749707589272,18.82601827,159.4,159.39,5.48]
[1749707591572,26.0,159.37,159.34,5.46]
[1749707591869,13.85107909,159.35,159.34,5.46]
[1749707602495,26.0,159.36,159.34,5.46]
[1749707602793,13.85107909,159.35,159.34,5.46]
[1749707605499,18.53444152,159.35,159.34,5.46]
[1749707605797,44.53444152,159.35,159.34,5.46]
[1749707606211,39.85107909,159.35,159.34,5.46]
[1749707606373,44.53349079,159.35,159.34,5.46]
[1749707606574,39.85107909,159.35,159.34,5.46]
[1749707607807,27.5463,159.39,159.34,5.46]
[1749707608015,4.68196935,159.38,159.34,31.02]
[1749707608178,30.68196935,159.38,159.34,44.87107909]
[1749707608379,39.85107909,159.38,159.34,31.02]
[1749707608687,13.85107909,159.37,159.34,31.02]
[1749707611880,26.0,159.38,159.34,31.02]
[1749707612099,13.85107909,159.37,159.34,31.02]
[1749707612487,13.85107909,159.36,159.34,31.02]
[1749707613611,13.85107909,159.37,159.34,31.02]
[1749707624306,13.85107909,159.35,159.34,5.46]
[1749707625015,44.54327089,159.35,159.34,5.46]
[1749707630118,39.85107909,159.35,159.34,5.46]
[1749707630320,44.5426726,159.35,159.34,5.46]
[1749707633719,30.69159351,159.35,159.34,5.46]
[1749707633925,44.5426726,159.35,159.34,5.46]
[1749707634434,30.69159351,159.35,159.34,5.46]
[1749707634804,44.5426726,159.35,159.34,5.46]
[1749707635099,13.85107909,159.37,159.34,5.46]
[1749707635300,26.0,159.37,159.34,5.46]
[1749707636140,26.0,159.37,159.35,25.56]
[1749707637731,26.0,159.37,159.35,39.41107909]
[1749707638630,6.62187936,159.42,159.35,39.41107909]
[1749707638811,26.0,159.39,159.35,39.41107909]
[1749707639709,13.85107909,159.4,159.36,13.85107909]
[1749707639909,39.85107909,159.41,159.36,13.85107909]
[1749707640131,18.54000008,159.4,159.36,13.85107909]
[1749707640429,39.85107909,159.41,159.36,13.85107909]
[1749707640630,13.85107909,159.41,159.37,13.85107909]
[1749707640809,13.85107909,159.42,159.37,13.85107909]
[1749707641017,4.6885329,159.41,159.37,13.85107909]
[1749707641217,13.85107909,159.42,159.37,13.85107909]
[1749707642524,18.53621982,159.42,159.37,13.85107909]
[1749707642727,13.85107909,159.42,159.37,13.85107909]
[1749707642918,18.53621982,159.42,159.38,13.85107909]
[1749707643121,13.85107909,159.42,159.39,25.56]
[1749707644947,13.85107909,159.41,159.39,25.56]
[1749707646129,13.85107909,159.4,159.35,15.48177909]
[1749707646330,13.85107909,159.39,159.36,31.0]
[1749707646539,13.85107909,159.4,159.36,31.0]
[1749707646716,39.85107909,159.41,159.37,13.85107909]
[1749707647118,13.85107909,159.43,159.38,13.85107909]
[1749707647340,18.53190133,159.43,159.38,13.85107909]
[1749707648241,13.85107909,159.41,159.37,13.85107909]
[1749707648447,13.85107909,159.41,159.36,44.85107909]
[1749707648649,13.85107909,159.41,159.37,13.85107909]
[1749707649823,4.68082224,159.43,159.37,13.85107909]
[1749707650045,13.85107909,159.42,159.37,13.85107909]
[1749707650837,13.85107909,159.43,159.38,13.85107909]
[1749707652249,13.85107909,159.42,159.38,13.85107909]
[1749707653749,13.85107909,159.43,159.38,13.85107909]
[1749707655331,13.85107909,159.43,159.39,13.85107909]
[1749707655646,39.85107909,159.44,159.4,39.39107909]
[1749707655945,26.0,159.44,159.4,39.39107909]
[1749707656849,39.85107909,159.44,159.4,39.39107909]
[1749707662055,39.85107909,159.44,159.4,25.54]
[1749707662761,26.0,159.44,159.4,25.54]
[1749707663087,13.85107909,159.42,159.4,25.54]
[1749707666452,27.6302,159.46,159.4,25.54]
[1749707666779,13.85107909,159.42,159.4,25.54]
[1749707671168,13.85107909,159.42,159.41,5.46]
[1749707673169,26.0,159.45,159.41,5.46]
[1749707673471,13.85107909,159.43,159.41,5.46]
[1749707673656,26.0,159.45,159.41,5.46]
[1749707673850,26.0,159.45,159.41,19.31107909]
[1749707674049,39.85107909,159.45,159.41,5.46]
[1749707674887,13.85107909,159.44,159.41,5.46]
[1749707675065,13.85107909,159.43,159.41,5.46]
[1749707675268,13.85107909,159.42,159.41,5.46]
[1749707676573,13.85107909,159.43,159.41,5.46]
[1749707677172,13.85107909,159.43,159.41,30.98]
[1749707683796,26.0,159.45,159.41,30.98]
[1749707683797,13.85107909,159.44,159.41,30.98]
[1749707684578,26.0,159.45,159.41,30.98]
[1749707684977,26.0,159.45,159.41,44.83107909]
[1749707685184,26.0,159.45,159.42,13.85107909]
[1749707685385,26.0,159.44,159.43,25.52]
[1749707686804,13.85107909,159.46,159.43,25.52]
[1749707686979,4.68970819,159.45,159.43,25.52]
[1749707687293,13.85107909,159.46,159.43,25.52]
[1749707687476,4.6899255,159.45,159.43,25.52]
[1749707687680,26.0,159.46,159.43,25.52]
[1749707688398,39.85107909,159.46,159.43,25.52]
[1749707691401,4.69099588,159.45,159.43,25.52]
[1749707691576,34.85466082,159.46,159.43,25.52]
[1749707691776,4.6908811,159.45,159.43,25.52]
[1749707691973,34.85466082,159.46,159.43,25.52]
[1749707692200,4.69088038,159.45,159.43,25.52]
[1749707692383,34.85466082,159.46,159.43,25.52]
[1749707697909,8.85466082,159.44,159.43,25.52]
[1749707698099,8.85466082,159.44,159.41,5.46]
[1749707698404,8.85466082,159.43,159.42,25.52]
[1749707698915,8.85466082,159.43,159.41,30.98]
[1749707699081,8.85466082,159.42,159.41,5.46]
[1749707704007,8.85466082,159.42,159.35,27.50430968]
[1749707704210,8.85466082,159.4,159.36,30.96]
[1749707704384,8.85466082,159.4,159.37,25.52]
[1749707704905,34.85466082,159.41,159.37,25.52]
[1749707705289,34.85466082,159.41,159.36,14.29466082]
[1749707705634,8.85466082,159.42,159.37,34.37466082]
[1749707710019,8.85466082,159.41,159.37,34.37466082]
[1749707711933,8.85466082,159.41,159.37,25.52]
[1749707712436,8.85466082,159.41,159.37,34.37466082]
[1749707712942,34.85466082,159.42,159.37,34.37466082]
[1749707713235,34.85466082,159.42,159.38,8.85466082]
[1749707713632,8.85466082,159.43,159.38,8.85466082]
[1749707715415,8.85466082,159.42,159.37,34.37466082]
[1749707716244,8.85466082,159.43,159.38,8.85466082]
[1749707717939,8.85466082,159.43,159.39,5.44]
[1749707718152,8.85466082,159.43,159.4,25.52]
[1749707721642,8.85466082,159.42,159.4,25.52]
[1749707722428,8.85466082,159.41,159.39,30.96]
[1749707722634,37.01074328,159.44,159.39,30.96]
[1749707722635,8.85466082,159.4,159.39,30.96]
[1749707722837,8.85466082,159.4,159.39,5.44]
[1749707723438,8.85466082,159.41,159.39,5.44]
[1749707723646,8.85466082,159.42,159.39,5.44]
[1749707723836,8.85466082,159.43,159.4,25.52]
[1749707727520,8.85466082,159.43,159.41,5.44]
[1749707732350,8.85466082,159.42,159.41,5.44]
[1749707733949,8.85466082,159.43,159.41,5.44]
[1749707737458,8.85466082,159.42,159.41,5.44]
[1749707738541,13.54578829,159.42,159.41,5.44]
[1749707742042,4.69112747,159.42,159.41,5.44]
[1749707743556,13.54578829,159.42,159.41,5.44]
[1749707750677,10.44676082,159.44,159.41,5.44]
[1749707750852,4.69664552,159.43,159.41,5.44]
[1749707751048,10.44676082,159.44,159.41,5.44]
[1749707751256,4.69667865,159.43,159.41,5.44]
[1749707751456,10.44676082,159.44,159.41,5.44]
[1749707751657,13.55129965,159.43,159.41,5.44]